fUST/lending_fUST_20251128
["ID","MTS","AMOUNT","RATE_DAILY","PERIOD"]
[394990863,1764273047397,-151.0,0.0001,2]
[394990864,1764273047407,-151.0,0.0001,2]
[394990865,1764273047417,-151.0,0.0001,2]
[394990866,1764273047427,-151.0,0.0001,2]
[394990867,1764273047437,-209.40437684,0.0001,2]
[394990868,1764273047447,-1132.113,0.0001001,2]
[394990869,1764273047457,-184.384,0.0001001,2]
[394990870,1764273047467,-990.0,0.00010132,2]
[394990871,1764273047477,-630.0,0.00010132,2]
[394990872,1764273047488,-2153.0,0.00010132,2]
[394990873,1764273047499,-500.0,0.00010137,2]
[394990874,1764273047510,-1000.0,0.00010274,2]
[394990875,1764273047521,-1000.0,0.00010274,2]
[394990876,1764273047531,-579.0,0.00010274,2]
[394990877,1764273047541,-439.06770663,0.00010411,2]
[394990878,1764273047551,-577.96660147,0.000105,3]
[394990879,1764273047562,-185.71653574,0.000105,3]
[394990880,1764273047574,-217.15233878,0.00010548,2]
[394990881,1764273047587,-422.89824184,0.00010618,2]
[394990882,1764273047597,-999.0,0.00010959,2]
[394990883,1764273047608,-151.0,0.00010959,2]
[394990884,1764273047618,-151.0,0.00010959,2]
[394990885,1764273047628,-151.0,0.00010959,2]
[394990886,1764273047638,-151.0,0.00010959,2]
[394990887,1764273047648,-151.0,0.00010959,2]
[394990888,1764273047658,-151.0,0.00010959,2]
[394990889,1764273047669,-151.0,0.00010959,2]
[394990890,1764273047679,-151.0,0.00010959,2]
[394990891,1764273047690,-151.0,0.00010959,2]
[394990892,1764273047700,-220.765835,0.00010959,2]
[394990893,1764273047711,-19663.4957226,0.00010959,2]
[394990894,1764273047723,-623.94014504,0.00010959,2]
[394990895,1764273047733,-623.94014504,0.00010959,2]
[394990896,1764273047743,-623.94014504,0.00010959,2]
[394990897,1764273047754,-623.94014504,0.00010959,2]
[394990898,1764273047764,-623.94014504,0.00010959,2]
[394990899,1764273047774,-623.94014504,0.00010959,2]
[394990900,1764273047784,-623.94014504,0.00010959,2]
[394990901,1764273047794,-623.94014504,0.00010959,2]
[394990902,1764273047804,-623.94014504,0.00010959,2]
[394990903,1764273047814,-623.94014504,0.00010959,2]
[394990904,1764273047824,-623.94014504,0.00010959,2]
[394990905,1764273047834,-623.94014504,0.00010959,2]
[394990906,1764273047844,-623.94014504,0.00010959,2]
[394990907,1764273047855,-623.94014504,0.00010959,2]
[394990908,1764273047869,-623.94014504,0.00010959,2]
[394990909,1764273047879,-623.94014504,0.00010959,2]
[394990910,1764273047889,-623.94014504,0.00010959,2]
[394990911,1764273047899,-623.94014504,0.00010959,2]
[394990912,1764273047908,-623.94014504,0.00010959,2]
[394990913,1764273047917,-623.94014504,0.00010959,2]
[394990914,1764273047927,-623.94014504,0.00010959,2]
[394990915,1764273047937,-623.94014504,0.00010959,2]
[394990916,1764273047947,-623.94014504,0.00010959,2]
[394990917,1764273047956,-623.94014504,0.00010959,2]
[394990918,1764273047966,-623.94014504,0.00010959,2]
[394990919,1764273047975,-623.94014504,0.00010959,2]
[394990920,1764273047985,-623.94014504,0.00010959,2]
[394990921,1764273047996,-623.94014504,0.00010959,2]
[394990922,1764273048007,-623.94014504,0.00010959,2]
[394990923,1764273048019,-623.94014504,0.00010959,2]
[394990924,1764273048030,-623.94014504,0.00010959,2]
[394990925,1764273048040,-623.94014504,0.00010959,2]
[394990926,1764273048051,-623.94014504,0.00010959,2]
[394990927,1764273048061,-623.94014504,0.00010959,2]
[394990928,1764273048071,-623.94014504,0.00010959,2]
[394990929,1764273048081,-623.94014504,0.00010959,2]
[394990930,1764273048091,-623.94014504,0.00010959,2]
[394990931,1764273048103,-623.94014504,0.00010959,2]
[394990932,1764273048113,-623.94014504,0.00010959,2]
[394990933,1764273048123,-623.94014504,0.00010959,2]
[394990934,1764273048134,-623.94014504,0.00010959,2]
[394990935,1764273048145,-623.94014504,0.00010959,2]
[394990936,1764273048157,-623.94014504,0.00010959,2]
[394990937,1764273048167,-623.94014504,0.00010959,2]
[394990938,1764273048178,-623.94014504,0.00010959,2]
[394990939,1764273048190,-623.94014504,0.00010959,2]
[394990940,1764273048201,-623.94014504,0.00010959,2]
[394990941,1764273048211,-623.94014504,0.00010959,2]
[394990942,1764273048221,-623.94014504,0.00010959,2]
[394990943,1764273048231,-623.94014504,0.00010959,2]
[394990944,1764273048241,-500.0,0.00010959,2]
[394990945,1764273048250,-500.0,0.00010959,2]
[394990946,1764273048260,-500.0,0.00010959,2]
[394990947,1764273048270,-623.94014504,0.00010959,2]
[394990948,1764273048279,-500.0,0.00010959,2]
[394990949,1764273048289,-500.0,0.00010959,2]
[394990950,1764273048298,-500.0,0.00010959,2]
[394990951,1764273048308,-500.0,0.00010959,2]
[394990952,1764273048318,-500.0,0.00010959,2]
[394990953,1764273048328,-500.0,0.00010959,2]
[394990954,1764273048337,-433.13504243,0.00010959,2]
[394990955,1764273048346,-500.0,0.00010959,2]
[394990956,1764273048356,-500.0,0.00010959,2]
[394990957,1764273048365,-269.32433554,0.00010959,2]
[394990958,1764273048375,-623.94014503,0.00010959,2]
[394990959,1764273048385,-623.94014503,0.00010959,2]
[394990960,1764273048395,-623.94014503,0.00010959,2]
[394990961,1764273048407,-623.94014503,0.00010959,2]
[394990962,1764273048416,-623.94014503,0.00010959,2]
[394990963,1764273048426,-623.94014503,0.00010959,2]
[394990964,1764273048436,-623.94014503,0.00010959,2]
[394990965,1764273048446,-623.94014503,0.00010959,2]
[394990966,1764273048456,-623.94014503,0.00010959,2]
[394990967,1764273048466,-623.94014503,0.00010959,2]
[394990968,1764273048475,-623.94014503,0.00010959,2]
[394990969,1764273048485,-623.94014503,0.00010959,2]
[394990970,1764273048495,-623.94014503,0.00010959,2]
[394990971,1764273048504,-623.94014503,0.00010959,2]
[394990972,1764273048514,-623.94014503,0.00010959,2]
[394990973,1764273048524,-623.94014503,0.00010959,2]
[394990974,1764273048534,-623.94014503,0.00010959,2]
[394990975,1764273048544,-623.94014503,0.00010959,2]
[394990976,1764273048554,-623.94014503,0.00010959,2]
[394990977,1764273048563,-623.94014503,0.00010959,2]
[394990978,1764273048574,-623.94014503,0.00010959,2]
[394990979,1764273048584,-623.94014503,0.00010959,2]
[394990980,1764273048595,-623.94014503,0.00010959,2]
[394990981,1764273048604,-623.94014503,0.00010959,2]
[394990982,1764273048614,-623.94014503,0.00010959,2]
[394990983,1764273048624,-623.94014503,0.00010959,2]
[394990984,1764273048633,-623.94014503,0.00010959,2]
[394990985,1764273048643,-623.94014503,0.00010959,2]
[394990986,1764273048652,-623.94014503,0.00010959,2]
[394990987,1764273048667,-623.94014503,0.00010959,2]
[394990988,1764273048676,-623.94014503,0.00010959,2]
[394990989,1764273048687,-623.94014503,0.00010959,2]
[394990990,1764273048696,-623.94014503,0.00010959,2]
[394990991,1764273048706,-500.0,0.00010959,2]
[394990992,1764273048715,-500.0,0.00010959,2]
[394990993,1764273048725,-500.0,0.00010959,2]
[394990994,1764273048735,-500.0,0.00010959,2]
[394990995,1764273048750,-500.0,0.00010959,2]
[394990996,1764273048760,-500.0,0.00010959,2]
[394990997,1764273048772,-350.0,0.00010959,2]
[394990998,1764273048781,-500.0,0.00010959,2]
[394990999,1764273048791,-500.0,0.00010959,2]
[394991000,1764273048800,-623.94014505,0.00010959,2]
[394991001,1764273048809,-623.94014505,0.00010959,2]
[394991002,1764273048819,-623.94014504,0.00010959,2]
[394991003,1764273048828,-500.0,0.00010959,2]
[394991004,1764273048837,-500.0,0.00010959,2]
[394991005,1764273048846,-500.0,0.00010959,2]
[394991006,1764273048858,-178.88756326,0.00010959,2]
[394991007,1764273048869,-500.0,0.00010959,2]
[394991008,1764273048878,-500.0,0.00010959,2]
[394991009,1764273048888,-500.0,0.00010959,2]
[394991010,1764273048899,-500.0,0.00010959,2]
[394991011,1764273048910,-500.0,0.00010959,2]
[394991012,1764273048920,-500.0,0.00010959,2]
[394991013,1764273048931,-500.0,0.00010959,2]
[394991014,1764273049291,-500.0,0.00010959,2]
[394991015,1764273049308,-500.0,0.00010959,2]
[394991016,1764273049319,-2052.55249174,0.00010959,2]
[394991017,1764273049329,-2052.55249174,0.00010959,2]
[394991018,1764273049338,-500.0,0.00010959,2]
[394991019,1764273049349,-2052.55249174,0.00010959,2]
[394991020,1764273049359,-2052.55249174,0.00010959,2]
[394991021,1764273049369,-2052.55249174,0.00010959,2]
[394991022,1764273049380,-500.0,0.00010959,2]
[394991023,1764273049390,-500.0,0.00010959,2]
[394991024,1764273049400,-500.0,0.00010959,2]
[394991025,1764273049409,-500.0,0.00010959,2]
[394991026,1764273049418,-500.0,0.00010959,2]
[394991027,1764273049427,-500.0,0.00010959,2]
[394991028,1764273049436,-500.0,0.00010959,2]
[394991029,1764273049445,-500.0,0.00010959,2]
[394991030,1764273049455,-500.0,0.00010959,2]
[394991031,1764273049464,-500.0,0.00010959,2]
[394991032,1764273049473,-500.0,0.00010959,2]
[394991033,1764273049483,-500.0,0.00010959,2]
[394991034,1764273049492,-500.0,0.00010959,2]
[394991035,1764273049501,-500.0,0.00010959,2]
[394991036,1764273049511,-500.0,0.00010959,2]
[394991037,1764273049520,-500.0,0.00010959,2]
[394991038,1764273049530,-500.0,0.00010959,2]
[394991039,1764273049539,-500.0,0.00010959,2]
[394991040,1764273049548,-500.0,0.00010959,2]
[394991041,1764273049558,-500.0,0.00010959,2]
[394991042,1764273049568,-500.0,0.00010959,2]
[394991043,1764273049577,-500.0,0.00010959,2]
[394991044,1764273049586,-500.0,0.00010959,2]
[394991045,1764273049596,-500.0,0.00010959,2]
[394991046,1764273049608,-362.2010121,0.00010959,2]
[394991047,1764273049618,-500.0,0.00010959,2]
[394991048,1764273049627,-500.0,0.00010959,2]
[394991049,1764273049636,-500.0,0.00010959,2]
[394991050,1764273049646,-500.0,0.00010959,2]
[394991051,1764273049656,-500.0,0.00010959,2]
[394991052,1764273049667,-500.0,0.00010959,2]
[394991053,1764273049676,-500.0,0.00010959,2]
[394991054,1764273049685,-500.0,0.00010959,2]
[394991055,1764273049695,-500.0,0.00010959,2]
[394991056,1764273049706,-500.0,0.00010959,2]
[394991057,1764273049716,-500.0,0.00010959,2]
[394991058,1764273049725,-500.0,0.00010959,2]
[394991059,1764273049734,-500.0,0.00010959,2]
[394991060,1764273049743,-500.0,0.00010959,2]
[394991061,1764273049753,-500.0,0.00010959,2]
[394991062,1764273049762,-500.0,0.00010959,2]
[394991063,1764273049771,-500.0,0.00010959,2]
[394991064,1764273049780,-5603.78243598,0.00010959,2]
[394991065,1764273049789,-5603.78243598,0.00010959,2]
[394991066,1764273049798,-5603.78243598,0.00010959,2]
[394991067,1764273049808,-5603.78243598,0.00010959,2]
[394991068,1764273049817,-5603.78243598,0.00010959,2]
[394991069,1764273049834,-5603.78243598,0.00010959,2]
[394991070,1764273049850,-5603.78243598,0.00010959,2]
[394991071,1764273049863,-5603.78243598,0.00010959,2]
[394991072,1764273049873,-5603.78243598,0.00010959,2]
[394991073,1764273049883,-5603.78243598,0.00010959,2]
[394991074,1764273049895,-5603.78243599,0.00010959,2]
[394991075,1764273049906,-5603.78243598,0.00010959,2]
[394991076,1764273049916,-5603.78243598,0.00010959,2]
[394991077,1764273049926,-5603.78243598,0.00010959,2]
[394991078,1764273049937,-5603.78243598,0.00010959,2]
[394991079,1764273049946,-5603.78243598,0.00010959,2]
[394991080,1764273049959,-5603.78243598,0.00010959,2]
[394991081,1764273049974,-5603.78243598,0.00010959,2]
[394991082,1764273049983,-5603.78243598,0.00010959,2]
[394991083,1764273049993,-5603.78243598,0.00010959,2]
[394991084,1764273050002,-5603.78243598,0.00010959,2]
[394991085,1764273050012,-5603.78243598,0.00010959,2]
[394991086,1764273050021,-5603.78243598,0.00010959,2]
[394991087,1764273050030,-5603.78243598,0.00010959,2]
[394991088,1764273050039,-5603.78243598,0.00010959,2]
[394991089,1764273050049,-5603.78243598,0.00010959,2]
[394991090,1764273050058,-5603.78243598,0.00010959,2]
[394991091,1764273050068,-5603.78243598,0.00010959,2]
[394991092,1764273050076,-5603.78243598,0.00010959,2]
[394991093,1764273050087,-5603.78243598,0.00010959,2]
[394991094,1764273050096,-5603.78243598,0.00010959,2]
[394991095,1764273050106,-5603.78243598,0.00010959,2]
[394991096,1764273050115,-281.0,0.00011,2]
[394991097,1764273050125,-1066.00646457,0.00011084,2]
[394991098,1764273050135,-225.18697532,0.00011096,2]
[394991099,1764273050146,-1000.0,0.00011302,2]
[394991100,1764273050155,-1000.0,0.00011302,2]
[394991101,1764273050164,-1000.0,0.00011302,2]
[394991102,1764273050174,-233.51889341,0.00011644,2]
[394991103,1764273050183,-349.15637481,0.00011686,2]
[394991104,1764273050193,-160.0,0.00011791,2]
[394991105,1764273050202,-353.54508592,0.00011792,2]
[394991106,1764273050212,-160.0,0.00011834,2]
[394991107,1764273050221,-155.98404395,0.00012,2]
[394991108,1764273050230,-165.57584969,0.00012161,2]
[394991109,1764273050240,-242.15909246,0.00012192,2]
[394991110,1764273050249,-499.45,0.00012329,2]
[394991111,1764273050259,-1000.0,0.00012432,2]
[394991112,1764273050269,-1000.0,0.00012432,2]
[394991113,1764273050278,-1000.0,0.00012432,2]
[394991114,1764273050289,-715.0,0.00012432,2]
[394991115,1764273050298,-857.33298225,0.00012447,7]
[394991116,1764273050307,-207.8908245,0.00012459,2]
[394991117,1764273050317,-156.587,0.00012739,2]
[394991118,1764273050326,-251.11897888,0.0001274,2]
[394991119,1764273050335,-345.94903301,0.00012821,2]
[394991120,1764273050344,-5904.30609546,0.000129,2]
[394991121,1764273050354,-5904.3060954,0.000129,2]
[394991122,1764273050363,-317.0,0.00013,2]
[394991123,1764273050373,-990.0,0.00013132,2]
[394991124,1764273050382,-630.0,0.00013132,2]
[394991125,1764273050392,-2153.0,0.00013132,2]
[394991126,1764273050402,-3841.57199441,0.00013225,7]
[394991127,1764273050411,-260.4103811,0.00013288,2]
[394991128,1764273050421,-1000.0,0.00013675,2]
[394991129,1764273050430,-1000.0,0.00013675,2]
[394991130,1764273050439,-1000.0,0.00013675,2]
[394991131,1764273050449,-385.69599543,0.00013686,2]
[394991132,1764273050458,-500.0,0.00013698,2]
[394991133,1764273050468,-500.0,0.00013698,2]
[394991134,1764273050478,-628.22284074,0.00013698,2]
[394991135,1764273050488,-3150.0,0.00013699,2]
[394991136,1764273050497,-2574.45675349,0.00013699,2]
[394991137,1764273050507,-1000.0,0.00013699,2]
[394991138,1764273050517,-750.0,0.00013699,2]
[394991139,1764273050527,-1079.035635,0.00013699,2]
[394991140,1764273050537,-153.28922,0.00013699,2]
[394991141,1764273050546,-151.0,0.00013699,2]
[394991142,1764273050556,-151.0,0.00013699,2]
[394991143,1764273050566,-951.511621,0.00013699,2]
[394991144,1764273050575,-951.511621,0.00013699,2]
[394991145,1764273050585,-951.511621,0.00013699,2]
[394991146,1764273050594,-951.511621,0.00013699,2]
[394991147,1764273050603,-951.511621,0.00013699,2]
[394991148,1764273050613,-951.511621,0.00013699,2]
[394991149,1764273050622,-951.511621,0.00013699,2]
[394991150,1764273050631,-951.511621,0.00013699,2]
[394991151,1764273050640,-951.511621,0.00013699,2]
[394991152,1764273050650,-951.511621,0.00013699,2]
[394991153,1764273050659,-951.511621,0.00013699,2]
[394991154,1764273050668,-951.511621,0.00013699,2]
[394991155,1764273050678,-951.511621,0.00013699,2]
[394991156,1764273050687,-951.511621,0.00013699,2]
[394991157,1764273050697,-951.511621,0.00013699,2]
[394991158,1764273050706,-951.511621,0.00013699,2]
[394991159,1764273050716,-951.511621,0.00013699,2]
[394991160,1764273050725,-951.511621,0.00013699,2]
[394991161,1764273050734,-951.511621,0.00013699,2]
[394991162,1764273050744,-951.511618,0.00013699,2]
[394991163,1764273050753,-500.0,0.00013699,2]
[394991164,1764273050762,-500.0,0.00013699,2]
[394991165,1764273050771,-500.0,0.00013699,2]
[394991166,1764273050780,-500.0,0.00013699,2]
[394991167,1764273050790,-500.0,0.00013699,2]
[394991168,1764273050799,-500.0,0.00013699,2]
[394991169,1764273050808,-278.24228661,0.00013699,2]
[394991170,1764273050818,-2000.0,0.00013699,7]
[394991171,1764273050827,-500.0,0.00013699,2]
[394991172,1764273050837,-500.0,0.00013699,2]
[394991173,1764273050846,-500.0,0.00013699,2]
[394991174,1764273050857,-500.0,0.00013699,2]
[394991175,1764273050869,-500.0,0.00013699,2]
[394991176,1764273050878,-500.0,0.00013699,2]
[394991177,1764273050888,-500.0,0.00013699,2]
[394991178,1764273050898,-500.0,0.00013699,2]
[394991179,1764273050909,-500.0,0.00013699,2]
[394991180,1764273050919,-336.00305575,0.00013699,2]
[394991181,1764273050929,-500.0,0.00013699,2]
[394991182,1764273050939,-162.88730838,0.00013699,2]
[394991183,1764273050949,-443.90966214,0.00013699,2]
[394991184,1764273050959,-500.0,0.00013699,2]
[394991185,1764273050968,-500.0,0.00013699,2]
[394991186,1764273050977,-500.0,0.00013699,2]
[394991187,1764273050987,-1066.00646457,0.00013752,2]
[394991188,1764273050998,-270.0455652,0.00013836,2]
[394991189,1764273051007,-500.0,0.00013973,2]
[394991190,1764273051017,-3438.64618862,0.00014,2]
[394991191,1764273051026,-284.2,0.00014,2]
[394991192,1764273051035,-1000.0,0.0001411,2]
[394991193,1764273051045,-500.0,0.00014247,2]
[394991194,1764273051054,-1026.02034115,0.00014247,2]
[394991195,1764273051063,-266.89287673,0.00014247,2]
[394991196,1764273051073,-1000.0,0.00014247,2]
[394991197,1764273051082,-1000.0,0.00014247,2]
[394991198,1764273051090,-1000.0,0.00014247,2]
[394991199,1764273051100,-1000.0,0.00014247,2]
[394991200,1764273051109,-1000.0,0.00014247,2]
[394991201,1764273051118,-1000.0,0.00014247,2]
[394991202,1764273051126,-1000.0,0.00014247,2]
[394991203,1764273051135,-1000.0,0.00014247,2]
[394991204,1764273051144,-1000.0,0.00014247,2]
[394991205,1764273051153,-1000.0,0.00014247,2]
[394991206,1764273051162,-221.04122057,0.00014247,2]
[394991207,1764273051171,-1000.0,0.00014247,2]
[394991208,1764273051180,-1000.0,0.00014247,2]
[394991209,1764273051189,-251.48287502,0.00014247,2]
[394991210,1764273051199,-323.11235924,0.00014247,2]
[394991211,1764273051208,-3150.0,0.00014247,2]
[394991212,1764273051217,-280.03725112,0.00014384,2]
[394991213,1764273051226,-3425.90259708,0.00014388,7]
[394991214,1764273051235,-500.0,0.00014521,2]
[394991215,1764273051244,-909.10411048,0.00014521,2]
[394991216,1764273051253,-159.6728257,0.0001471,2]
[394991217,1764273051262,-577.96660147,0.0001471,2]
[394991218,1764273051271,-185.71653574,0.0001471,2]
[394991219,1764273051279,-500.0,0.00014795,2]
[394991220,1764273051288,-275.80144647,0.00014795,2]
[394991221,1764273051297,-1500.0,0.00014795,2]
[394991222,1764273051307,-501.20557329,0.00014795,2]
[394991223,1764273051316,-656.18050001,0.00014795,2]
[394991224,1764273051325,-1056.4625334,0.00014795,2]
[394991225,1764273051334,-771.52751088,0.00014795,2]
[394991226,1764273051343,-435.21928122,0.00014795,2]
[394991227,1764273051352,-3150.0,0.00014795,2]
[394991228,1764273051360,-591.9195108,0.000149,2]
[394991229,1764273051369,-290.39862941,0.00014932,2]
[394991230,1764273051378,-1013.69761831,0.00015,2]
[394991231,1764273051387,-529.0802788,0.00015,3]
[394991232,1764273051396,-375.33754226,0.00015,2]
[394991233,1764273051405,-300.0,0.00015,2]
[394991234,1764273051415,-500.0,0.00015068,2]
[394991235,1764273051425,-189.216708,0.00015068,2]
[394991236,1764273051434,-500.0,0.00015157,2]
[394991237,1764273051443,-500.0,0.00015342,2]
[394991238,1764273051453,-1775.64470075,0.00015342,2]
[394991239,1764273051462,-3150.0,0.00015343,2]
[394991240,1764273051471,-5996.45378502,0.00015374,7]
[394991241,1764273051481,-304.34247359,0.00015478,2]
[394991242,1764273051491,-301.1433787,0.0001548,2]
[394991243,1764273051501,-4302.17761093,0.00015529,7]
[394991244,1764273051512,-500.0,0.00015616,2]
[394991245,1764273051521,-422.23561604,0.00015686,2]
[394991246,1764273051531,-500.0,0.0001589,2]
[394991247,1764273051540,-500.0,0.00015955,2]
[394991248,1764273051550,-214.75768332,0.00016,2]
[394991249,1764273051559,-577.96660147,0.00016037,3]
[394991250,1764273051568,-185.71653574,0.00016037,3]
[394991251,1764273051578,-990.0,0.00016132,2]
[394991252,1764273051587,-630.0,0.00016132,2]
[394991253,1764273051597,-2153.0,0.00016132,2]
[394991254,1764273051607,-500.0,0.00016164,2]
[394991255,1764273051617,-1066.00646457,0.00016419,2]
[394991256,1764273051708,-589.34063765,0.00016438,2]
[394991257,1764273051718,-500.0,0.00016438,2]
[394991258,1764273051728,-500.0,0.00016438,2]
[394991259,1764273051738,-170.9,0.00016438,2]
[394991260,1764273051748,-500.0,0.00016438,2]
[394991261,1764273051759,-151.0,0.00016438,2]
[394991262,1764273051768,-151.0,0.00016438,2]
[394991263,1764273051777,-151.0,0.00016438,2]
[394991264,1764273051787,-151.0,0.00016438,2]
[394991265,1764273051796,-151.0,0.00016438,2]
[394991266,1764273051805,-250.053816,0.00016438,2]
[394991267,1764273051815,-300.0,0.00016438,2]
[394991268,1764273051826,-163.3662967,0.00016438,2]
[394991269,1764273051835,-500.0,0.00016712,2]
[394991270,1764273051843,-500.0,0.00016795,2]
[394991271,1764273051852,-4506.12812889,0.000168,2]
[394991272,1764273051866,-300.0,0.00016849,7]
[394991273,1764273051875,-150.0,0.00016978,2]
[394991274,1764273051884,-500.0,0.00016986,2]
[394991275,1764273051894,-600.0,0.00016986,2]
[394991276,1764273051902,-500.20209082,0.00017,2]
[394991277,1764273051910,-17072.17594307,0.00017,2]
[394991278,1764273051919,-353.54508592,0.00017,7]
[394991279,1764273051928,-500.0,0.0001726,2]
[394991280,1764273051940,-186.79978539,0.0001735,7]
[394991281,1764273051950,-500.0,0.00017534,2]
[394991282,1764273051959,-500.0,0.00017534,2]
[394991283,1764273051967,-900.0,0.00017534,2]
[394991284,1764273051976,-156.46268416,0.00017659,2]
[394991285,1764273051986,-500.0,0.00017679,2]
[394991286,1764273051994,-458.77523666,0.00017686,2]
[394991287,1764273052003,-21625.56,0.000178,3]
[394991288,1764273052012,-594.41,0.00017808,2]
[394991289,1764273052022,-406.21451344,0.00018,2]
[394991290,1764273052031,-353.54508592,0.00018,3]
[394991291,1764273052039,-447.46706692,0.00018082,2]
[394991292,1764273052047,-3793.719,0.00018141,7]
[394991293,1764273052056,-500.0,0.00018356,7]
[394991294,1764273052064,-170.9,0.00018374,2]
[394991295,1764273052073,-189.216708,0.00018493,2]
[394991296,1764273052082,-150.0,0.00018521,2]
[394991297,1764273052090,-500.0,0.00018609,2]
[394991298,1764273052099,-500.0,0.0001863,2]
[394991299,1764273052107,-9063.7633175,0.00018898,2]
[394991300,1764273052116,-302.78807257,0.000189,2]
[394991301,1764273052125,-302.75782099,0.000189,2]
[394991302,1764273052134,-356.0,0.00018931,2]
[394991303,1764273052142,-1066.00646457,0.00019086,2]
[394991304,1764273052149,-302.78807257,0.00019089,2]
[394991305,1764273052158,-302.75782099,0.00019089,2]
[394991306,1764273052165,-984.948,0.00019132,2]
[394991307,1764273052175,-630.0,0.00019132,2]
[394991308,1764273052183,-2153.0,0.00019132,2]
[394991309,1764273052193,-438.0,0.00019143,2]
[394991310,1764273052202,-150.0,0.00019178,2]
[394991311,1764273052212,-300.0,0.00019178,2]
[394991312,1764273052221,-450.163385,0.00019178,2]
[394991313,1764273052231,-526.674795,0.00019178,2]
[394991314,1764273052240,-526.674795,0.00019178,2]
[394991315,1764273052250,-526.674795,0.00019178,2]
[394991316,1764273052260,-526.674795,0.00019178,2]
[394991317,1764273052269,-526.674795,0.00019178,2]
[394991318,1764273052279,-526.674795,0.00019178,2]
[394991319,1764273052289,-526.674795,0.00019178,2]
[394991320,1764273052298,-526.674795,0.00019178,2]
[394991321,1764273052308,-526.674795,0.00019178,2]
[394991322,1764273052317,-526.674795,0.00019178,2]
[394991323,1764273052327,-526.674795,0.00019178,2]
[394991324,1764273052336,-526.674795,0.00019178,2]
[394991325,1764273052345,-526.674795,0.00019178,2]
[394991326,1764273052355,-526.674795,0.00019178,2]
[394991327,1764273052364,-526.674795,0.00019178,2]
[394991328,1764273052373,-526.674795,0.00019178,2]
[394991329,1764273052382,-526.674795,0.00019178,2]
[394991330,1764273052391,-526.674795,0.00019178,2]
[394991331,1764273052400,-526.674795,0.00019178,2]
[394991332,1764273052409,-526.674801,0.00019178,2]
[394991333,1764273052418,-302.78807257,0.00019278,2]
[394991334,1764273052429,-302.75782099,0.00019278,2]
[394991335,1764273052438,-559.0,0.00019324,2]
[394991336,1764273052447,-500.0,0.00019452,7]
[394991337,1764273052456,-302.78807257,0.00019467,2]
[394991338,1764273052465,-302.75782099,0.00019467,2]
[394991339,1764273052474,-577.96660147,0.00019539,2]
[394991340,1764273052483,-185.71653574,0.00019539,2]
[394991341,1764273052492,-154.36174,0.00019539,2]
[394991342,1764273052501,-500.0,0.00019589,2]
[394991343,1764273052511,-302.78807257,0.00019656,2]
[394991344,1764273052520,-302.75782099,0.00019656,2]
[394991345,1764273052529,-495.31485728,0.00019686,2]
[394991346,1764273052538,-500.0,0.00019726,2]
[394991347,1764273052547,-265.67734853,0.00019762,2]
[394991348,1764273052557,-265.67734853,0.00019762,2]
[394991349,1764273052566,-454.18210886,0.00019845,4]
[394991350,1764273052576,-454.13673149,0.00019845,4]
[394991351,1764273052585,-265.67734853,0.00019881,9]
[394991352,1764273052594,-265.67734853,0.00019881,9]
[394991353,1764273052604,-400.0,0.000199,2]
[394991354,1764273052614,-400.0,0.000199,3]
[394991355,1764273052623,-1565.944686,0.0001992,5]
[394991356,1764273052633,-1000.0,0.0001994,5]
[394991357,1764273052643,-1000.0,0.0001996,5]
[394991358,1764273052653,-1000.0,0.0001998,5]
[394991359,1764273052662,-344.10111951,0.00019996,2]
[394991360,1764273052672,-265.67734853,0.0002,17]
[394991361,1764273052682,-265.67734853,0.0002,17]
[394991362,1764273052691,-369.76920305,0.0002,2]